fUSD/lending_fUSD_20240215
["ID","MTS","AMOUNT","RATE_DAILY","PERIOD"]
[314151781,1708025431842,-154.46534699,0.00036851,2]
[314151782,1708025431853,-55611.41,0.00036871,2]
[314151783,1708025431862,-835.29,0.00036884,2]
[314151784,1708025431871,-21522.25252981,0.00036927,2]
[314151786,1708025431884,-2377.74747019,0.00036927,2]
[314151787,1708025431894,-150.0,0.00036965,2]
[314151789,1708025431903,-1506.78424076,0.00037,2]
[314151797,1708025432056,-993.21575924,0.00037,2]
[314151799,1708025432067,-650.0,0.00037,3]
[314151801,1708025432077,-278.61,0.00037021,2]
[314151803,1708025432086,-2000.0,0.00037043,2]
[314151805,1708025432096,-168.17,0.00037071,2]
[314151807,1708025432110,-154.46534699,0.00037142,2]
[314151809,1708025432120,-454.09188586,0.00037303,3]
[314151811,1708025432130,-499.99,0.00037303,2]
[314151813,1708025432140,-5034.28393118,0.00037303,4]
[314151815,1708025432149,-1552.2,0.00037314,2]
[314151817,1708025432159,-154.46534699,0.00037433,2]
[314151819,1708025432168,-173.9,0.00037514,2]
[314151821,1708025432178,-542.27160509,0.000377,4]
[314151822,1708025432188,-154.46534699,0.00037725,2]
[314151824,1708025432197,-667.18,0.0003783,2]
[314151826,1708025432207,-154.46534699,0.00038016,2]
[314151829,1708025432217,-6486.19796221,0.00038207,2]
[314151831,1708025432226,-1787.85025055,0.00038256,2]
[314151833,1708025432236,-154.46534699,0.00038307,2]
[314151834,1708025432245,-152.59,0.00038351,5]
[314151837,1708025432255,-259.68018849,0.00038356,7]
[314151838,1708025432265,-500.0,0.00038356,7]
[314151840,1708025432274,-500.0,0.00038356,7]
[314151842,1708025432284,-500.0,0.00038356,7]
[314151845,1708025432293,-2579.84,0.00038356,15]
[314151846,1708025432303,-155.74,0.00038356,2]
[314151848,1708025432312,-277.7474,0.00038435,2]
[314151850,1708025432321,-738.1549,0.00038435,2]
[314151853,1708025432330,-51383.0317,0.00038436,2]
[314151854,1708025432339,-207.1187,0.00038436,2]
[314151856,1708025432349,-500.0,0.00038445,7]
[314151859,1708025432358,-11395.7012,0.00038446,2]
[314151861,1708025432368,-183.92020066,0.000385,13]
[314151862,1708025432378,-585.40192048,0.000385,2]
[314151864,1708025432387,-479.13070922,0.0003853,10]
[314151866,1708025432396,-500.0,0.00038534,7]
[314151868,1708025432405,-500.0,0.00038534,7]
[314151870,1708025432414,-500.0,0.00038534,7]
[314151872,1708025432423,-500.0,0.00038534,7]
[314151874,1708025432433,-500.0,0.00038534,7]
[314151877,1708025432442,-500.0,0.00038534,7]
[314151878,1708025432451,-500.0,0.00038534,7]
[314151880,1708025432460,-500.0,0.00038534,7]
[314151882,1708025432470,-500.0,0.00038534,7]
[314151884,1708025432479,-500.0,0.00038534,7]
[314151885,1708025432488,-500.0,0.00038534,7]
[314151886,1708025432497,-1350.58,0.00038534,7]
[314151887,1708025432506,-500.0,0.00038534,7]
[314151888,1708025432515,-500.0,0.00038534,7]
[314151889,1708025432524,-500.0,0.00038534,7]
[314151890,1708025432533,-500.0,0.00038534,7]
[314151891,1708025432542,-343.22463818,0.00038535,7]
[314151892,1708025432551,-500.0,0.00038535,7]
[314151893,1708025432560,-500.0,0.00038535,7]
[314151894,1708025432569,-500.0,0.00038535,7]
[314151895,1708025432578,-500.0,0.00038535,7]
[314151896,1708025432588,-500.0,0.00038535,7]
[314151897,1708025432597,-500.0,0.00038535,7]
[314151898,1708025432606,-500.0,0.00038535,7]
[314151899,1708025432616,-500.0,0.00038535,7]
[314151900,1708025432625,-593.7,0.00038535,7]
[314151901,1708025432634,-500.0,0.00038535,7]
[314151902,1708025432643,-500.0,0.00038535,7]
[314151903,1708025432652,-500.0,0.00038535,7]
[314151904,1708025432661,-500.0,0.00038535,7]
[314151905,1708025432670,-500.0,0.00038535,7]
[314151906,1708025432679,-500.0,0.00038535,7]
[314151907,1708025432688,-500.0,0.00038535,7]
[314151908,1708025432698,-500.0,0.00038535,7]
[314151909,1708025432706,-184.15693169,0.00038535,7]
[314151910,1708025432716,-500.0,0.00038535,7]
[314151911,1708025432724,-925.2,0.00038535,7]
[314151912,1708025432734,-500.0,0.00038535,7]
[314151913,1708025432743,-500.0,0.00038535,7]
[314151914,1708025432752,-500.0,0.00038535,7]
[314151915,1708025432761,-500.0,0.00038535,7]
[314151916,1708025432770,-500.0,0.00038535,7]
[314151917,1708025432779,-500.0,0.00038535,7]
[314151918,1708025432789,-500.0,0.00038535,7]
[314151919,1708025432798,-500.0,0.00038535,7]
[314151920,1708025432807,-500.0,0.00038535,7]
[314151921,1708025432817,-818.22,0.00038535,7]
[314151922,1708025432828,-500.0,0.00038535,7]
[314151923,1708025432837,-500.0,0.00038535,7]
[314151924,1708025432846,-500.0,0.00038535,7]
[314151925,1708025432857,-500.0,0.00038535,7]
[314151926,1708025432868,-2134.94,0.00038535,7]
[314151927,1708025432877,-500.0,0.00038535,7]
[314151928,1708025432887,-623.33,0.00038535,7]
[314151929,1708025432897,-500.0,0.00038535,7]
[314151930,1708025432906,-500.0,0.00038535,7]
[314151931,1708025432916,-500.0,0.00038535,7]
[314151932,1708025432927,-677.79,0.00038535,7]
[314151933,1708025432938,-545.37,0.00038535,7]
[314151934,1708025432949,-500.0,0.00038535,7]
[314151935,1708025432961,-500.0,0.00038535,7]
[314151936,1708025432971,-500.0,0.00038535,7]
[314151937,1708025432980,-500.0,0.00038535,7]
[314151938,1708025432990,-500.0,0.00038535,7]
[314151939,1708025432999,-500.0,0.00038535,7]
[314151940,1708025433008,-500.0,0.00038535,7]
[314151941,1708025433020,-500.0,0.00038535,7]
[314151942,1708025433029,-500.0,0.00038535,7]
[314151943,1708025433039,-500.0,0.00038535,7]
[314151944,1708025433048,-540.39,0.00038535,7]
[314151945,1708025433057,-500.0,0.00038535,7]
[314151946,1708025433069,-500.0,0.00038535,7]
[314151947,1708025433078,-500.0,0.00038535,7]
[314151948,1708025433088,-500.0,0.00038535,7]
[314151949,1708025433099,-500.0,0.00038535,7]
[314151950,1708025433109,-500.0,0.00038535,7]
[314151951,1708025433118,-500.0,0.00038535,7]
[314151952,1708025433127,-500.0,0.00038535,7]
[314151953,1708025433136,-500.0,0.00038535,7]
[314151954,1708025433146,-1191.48,0.00038535,7]
[314151955,1708025433155,-174.16177993,0.00038535,7]
[314151956,1708025433165,-500.0,0.00038535,7]
[314151957,1708025433174,-500.0,0.00038535,7]
[314151958,1708025433184,-500.0,0.00038535,7]
[314151959,1708025433194,-500.0,0.00038535,7]
[314151960,1708025433204,-500.0,0.00038535,7]
[314151961,1708025433214,-500.0,0.00038535,7]
[314151962,1708025433223,-500.0,0.00038535,7]
[314151963,1708025433232,-500.0,0.00038535,7]
[314151964,1708025433241,-848.23,0.00038535,7]
[314151965,1708025433250,-500.0,0.00038535,7]
[314151966,1708025433259,-500.0,0.00038535,7]
[314151967,1708025433268,-739.83,0.00038535,7]
[314151968,1708025433277,-500.0,0.00038535,7]
[314151969,1708025433287,-500.0,0.00038535,7]
[314151970,1708025433296,-500.0,0.00038535,7]
[314151971,1708025433305,-195.7,0.00038535,7]
[314151972,1708025433314,-500.0,0.00038535,7]
[314151973,1708025433324,-500.0,0.00038535,7]
[314151974,1708025433333,-500.0,0.00038535,7]
[314151975,1708025433342,-571.82,0.00038535,7]
[314151976,1708025433353,-506.74,0.00038535,7]
[314151977,1708025433362,-500.0,0.00038535,7]
[314151978,1708025433510,-500.0,0.00038535,7]
[314151979,1708025433519,-6349.56,0.00038535,7]
[314151980,1708025433529,-500.0,0.00038535,7]
[314151981,1708025433539,-500.0,0.00038535,7]
[314151982,1708025433548,-500.0,0.00038535,7]
[314151983,1708025433557,-500.0,0.00038535,7]
[314151984,1708025433567,-500.0,0.00038535,7]
[314151985,1708025433576,-500.0,0.00038535,7]
[314151986,1708025433585,-1481.32,0.00038535,7]
[314151987,1708025433595,-500.0,0.00038535,7]
[314151988,1708025433606,-601.84,0.00038535,7]
[314151989,1708025433614,-500.0,0.00038535,7]
[314151990,1708025433623,-500.0,0.00038535,7]
[314151991,1708025433632,-500.0,0.00038535,7]
[314151992,1708025433641,-500.0,0.00038535,7]
[314151993,1708025433650,-500.0,0.00038535,7]
[314151994,1708025433659,-500.0,0.00038535,2]
[314151995,1708025433668,-500.0,0.00038535,7]
[314151996,1708025433677,-254.22,0.0003858,2]
[314151997,1708025433687,-254.22,0.0003858,2]
[314151998,1708025433696,-299.41085414,0.0003858,2]
[314151999,1708025433705,-254.22,0.0003859,2]
[314152000,1708025433715,-254.22,0.0003859,2]
[314152001,1708025433724,-254.22,0.0003859,2]
[314152002,1708025433733,-47246.30185527,0.0003859,10]
[314152003,1708025433780,-1858.93303644,0.0003859,10]
[314152004,1708025433791,-16702.96992209,0.0003859,10]
[314152005,1708025433803,-1815.01114348,0.0003859,10]
[314152007,1708025437541,-500.0,0.00038445,7]
[314152008,1708025437553,-567.99,0.00038535,7]
[314152009,1708025437564,-1395.17164391,0.0003859,10]
[314152010,1708025437577,-290.08119832,0.0003859,10]
[314152011,1708025437600,-450.0,0.0003859,10]
[314152012,1708025437616,-1943.29667571,0.0003859,10]
[314152013,1708025437629,-587.673,0.0003859,10]
[314152014,1708025437663,-170198.86943078,0.0003859,10]
[314152015,1708025437674,-153601.442689,0.0003859,3]
[314152016,1708025437684,-154.46534699,0.00038599,2]
[314152017,1708025437693,-500.0,0.00038599,7]
[314152018,1708025437703,-554.56,0.00038599,7]
[314152019,1708025437714,-500.0,0.00038599,7]
[314152020,1708025437723,-500.0,0.00038599,7]
[314152021,1708025437733,-500.0,0.00038599,7]
[314152022,1708025437742,-500.0,0.00038599,7]
[314152023,1708025437752,-501.48,0.00038599,7]
[314152024,1708025437762,-500.0,0.00038599,7]
[314152025,1708025437772,-500.0,0.00038599,7]
[314152026,1708025437781,-842.92,0.00038599,7]
[314152027,1708025437791,-547.74,0.00038599,7]
[314152028,1708025437801,-500.0,0.00038599,7]
[314152029,1708025437811,-500.0,0.0003863,7]
[314152030,1708025437821,-500.0,0.0003863,7]
[314152031,1708025437830,-500.0,0.0003863,7]
[314152032,1708025437839,-150.0,0.0003864,2]
[314152033,1708025437849,-500.0,0.00038719,7]
[314152034,1708025437860,-500.0,0.00038719,7]
[314152035,1708025437870,-24248.8307906,0.00038799,10]
[314152036,1708025437879,-500.0,0.00038808,7]
[314152037,1708025437892,-500.0,0.00038808,7]
[314152038,1708025437901,-500.0,0.00038808,7]
[314152039,1708025437911,-500.0,0.00038808,7]
[314152040,1708025437920,-500.0,0.00038808,7]
[314152042,1708025437930,-500.0,0.00038808,7]
[314152044,1708025437940,-500.0,0.00038808,7]
[314152046,1708025437949,-500.0,0.00038808,7]
[314152048,1708025437959,-500.0,0.00038808,7]
[314152050,1708025437969,-500.0,0.00038808,7]
[314152052,1708025437978,-500.0,0.00038808,7]
[314152054,1708025437988,-1350.58,0.00038808,7]
[314152056,1708025437997,-500.0,0.00038808,7]
[314152058,1708025438007,-500.0,0.00038808,7]
[314152060,1708025438016,-583.52818269,0.00038808,7]
[314152062,1708025438025,-500.0,0.00038808,7]
[314152064,1708025438034,-500.0,0.00038809,7]
[314152066,1708025438043,-500.0,0.00038809,7]
[314152068,1708025438052,-500.0,0.00038809,7]
[314152070,1708025438062,-500.0,0.00038809,7]
[314152072,1708025438072,-500.0,0.00038809,7]
[314152074,1708025438081,-500.0,0.00038809,7]
[314152076,1708025438091,-500.0,0.00038809,7]
[314152078,1708025438101,-500.0,0.00038809,7]
[314152080,1708025438112,-500.0,0.00038809,7]
[314152082,1708025438125,-500.0,0.00038809,7]
[314152084,1708025438134,-500.0,0.00038809,7]
[314152086,1708025438143,-925.2,0.00038809,7]
[314152088,1708025438154,-583.14819807,0.00038809,7]
[314152091,1708025438167,-500.0,0.00038809,7]
[314152093,1708025438176,-500.0,0.00038809,7]
[314152095,1708025438186,-500.0,0.00038809,7]
[314152097,1708025438195,-500.0,0.00038809,7]
[314152099,1708025438205,-500.0,0.00038809,7]
[314152101,1708025438215,-500.0,0.00038809,7]
[314152103,1708025438224,-500.0,0.00038809,7]
[314152105,1708025438234,-500.0,0.00038809,7]
[314152107,1708025438243,-818.22,0.00038809,7]
[314152109,1708025438253,-500.0,0.00038809,7]
[314152111,1708025438263,-602.17071513,0.00038809,7]
[314152113,1708025438272,-500.0,0.00038809,7]
[314152115,1708025438282,-2134.94,0.00038809,7]
[314152117,1708025438292,-500.0,0.00038809,7]
[314152119,1708025438301,-623.33,0.00038809,7]
[314152121,1708025438311,-500.0,0.00038809,7]
[314152123,1708025438320,-677.79,0.00038809,7]
[314152125,1708025438330,-545.37,0.00038809,7]
[314152127,1708025438339,-500.0,0.00038809,7]
[314152129,1708025438348,-500.0,0.00038809,7]
[314152131,1708025438358,-500.0,0.00038809,7]
[314152134,1708025438367,-500.0,0.00038809,7]
[314152135,1708025438377,-500.0,0.00038809,7]
[314152138,1708025438386,-500.0,0.00038809,7]
[314152140,1708025438398,-500.0,0.00038809,7]
[314152142,1708025438407,-500.0,0.00038809,7]
[314152144,1708025438416,-500.0,0.00038809,7]
[314152146,1708025438425,-500.0,0.00038809,7]
[314152148,1708025438438,-540.39,0.00038809,7]
[314152150,1708025438447,-500.0,0.00038809,7]
[314152152,1708025438457,-500.0,0.00038809,7]
[314152154,1708025438466,-500.0,0.00038809,7]
[314152156,1708025438476,-500.0,0.00038809,7]
[314152159,1708025438485,-500.0,0.00038809,7]
[314152161,1708025438495,-500.0,0.00038809,7]
[314152163,1708025438504,-500.0,0.00038809,7]
[314152165,1708025438517,-500.0,0.00038809,7]
[314152167,1708025438527,-1191.48,0.00038809,7]
[314152169,1708025438537,-500.0,0.00038809,7]
[314152171,1708025438546,-500.0,0.00038809,7]
[314152173,1708025438556,-500.0,0.00038809,7]
[314152175,1708025438565,-500.0,0.00038809,7]
[314152177,1708025438575,-500.0,0.00038809,7]
[314152178,1708025438585,-500.0,0.00038809,7]
[314152179,1708025438594,-500.0,0.00038809,7]
[314152180,1708025438603,-500.0,0.00038809,7]
[314152181,1708025438613,-848.23,0.00038809,7]
[314152182,1708025438622,-500.0,0.00038809,7]
[314152183,1708025438631,-500.0,0.00038809,7]
[314152184,1708025438641,-739.83,0.00038809,7]
[314152185,1708025438650,-500.0,0.00038809,7]
[314152186,1708025438660,-500.0,0.00038809,7]
[314152187,1708025438669,-500.0,0.00038809,7]
[314152188,1708025438679,-500.0,0.00038809,7]
[314152189,1708025438689,-500.0,0.00038809,7]
[314152190,1708025438699,-500.0,0.00038809,7]
[314152191,1708025438708,-506.74,0.00038809,7]
[314152192,1708025438718,-571.82,0.00038809,7]
[314152193,1708025438727,-500.0,0.00038809,7]
[314152194,1708025438736,-500.0,0.00038809,7]
[314152195,1708025438746,-6349.56,0.00038809,7]
[314152196,1708025438755,-500.0,0.00038809,7]
[314152197,1708025438765,-500.0,0.00038809,7]
[314152198,1708025438775,-500.0,0.00038809,7]
[314152199,1708025438784,-500.0,0.00038809,7]
[314152200,1708025438794,-500.0,0.00038809,7]
[314152201,1708025438803,-500.0,0.00038809,7]
[314152202,1708025438813,-1481.32,0.00038809,7]
[314152203,1708025438823,-500.0,0.00038809,7]
[314152204,1708025438833,-601.84,0.00038809,7]
[314152205,1708025438842,-500.0,0.00038809,7]
[314152206,1708025438853,-500.0,0.00038809,7]
[314152207,1708025438862,-500.0,0.00038809,7]
[314152208,1708025438871,-500.0,0.00038809,7]
[314152209,1708025438881,-500.0,0.00038809,7]
[314152210,1708025438891,-500.0,0.00038809,2]
[314152211,1708025438900,-500.0,0.00038809,7]
[314152212,1708025438910,-567.99,0.00038809,7]
[314152213,1708025438919,-345.58600682,0.00038869,2]
[314152214,1708025438929,-257.32482154,0.00038869,2]
[314152215,1708025438938,-1407.50426386,0.00038869,2]
[314152216,1708025438948,-869.01398464,0.00038869,2]
[314152217,1708025438958,-208.0519975,0.00038869,2]
[314152218,1708025438967,-166.7899118,0.0003887,7]
[314152219,1708025438977,-500.0,0.00038873,7]
[314152220,1708025438987,-554.56,0.00038873,7]
[314152221,1708025438996,-500.0,0.00038873,7]
[314152222,1708025439006,-500.0,0.00038873,7]
[314152223,1708025439016,-500.0,0.00038873,7]
[314152224,1708025439026,-501.48,0.00038873,7]
[314152225,1708025439036,-500.0,0.00038873,7]
[314152226,1708025439045,-500.0,0.00038873,7]
[314152227,1708025439055,-842.92,0.00038873,7]
[314152228,1708025439064,-547.74,0.00038873,7]
[314152229,1708025439077,-500.0,0.00038873,7]
[314152230,1708025439087,-152.77661187,0.00038879,2]
[314152231,1708025439097,-205.21073047,0.00038879,12]
[314152232,1708025439111,-5000.0,0.0003888,3]
[314152233,1708025439125,-2917.38728928,0.0003888,2]
[314152234,1708025439135,-211.42958612,0.0003888,2]
[314152235,1708025439147,-8082.94359687,0.0003888,10]
[314152236,1708025439157,-164.60010223,0.0003889,2]
[314152237,1708025439167,-5936.42596557,0.0003889,12]
[314152238,1708025439177,-154.46534699,0.0003889,2]
[314152239,1708025439187,-479.57961728,0.00038904,7]
[314152240,1708025439196,-500.0,0.00038904,7]
[314152241,1708025439206,-500.0,0.00038904,7]
[314152242,1708025439216,-249460.10649304,0.00038969,3]
[314152243,1708025439232,-156508.63955086,0.00038969,3]
[314152244,1708025439244,-997.97551524,0.00038969,3]
[314152245,1708025439269,-2336.28897375,0.00038969,3]
[314152246,1708025439284,-756.38767,0.00038969,3]
[314152248,1708025439296,-34700.85390835,0.00038969,3]
[314152250,1708025439396,-2450.3358567,0.00038969,3]
[314152251,1708025439408,-3704.77177377,0.00038969,3]
[314152255,1708025440793,-304.1124606,0.00038535,7]
[314152257,1708025442424,-500.0,0.00038445,7]
[314152258,1708025442433,-195.8875394,0.00038535,7]
[314152259,1708025442443,-500.0,0.00038535,7]
[314152260,1708025442452,-624.93138568,0.00038719,7]
[314152261,1708025442461,-500.0,0.00038809,7]
[314152262,1708025442471,-500.0,0.00038809,7]
[314152263,1708025442480,-1034.71377745,0.00038969,3]
[314152264,1708025442493,-15432.23967984,0.00038969,3]
[314152265,1708025442504,-1453.00424801,0.00038969,3]
[314152266,1708025442596,-344.96973992,0.00038969,3]
[314152267,1708025442661,-1955.30802929,0.00038969,3]
[314152268,1708025442770,-0.00399616,0.00038969,3]
[314152269,1708025444048,-279.71086282,0.0003651,2]
[314152270,1708025444215,-497.39913718,0.0003651,2]
[314152271,1708025444225,-2797.64296282,0.00038342,2]
[314152272,1708025444273,-2740.13507218,0.00038342,2]
[314152273,1708025444282,-17896.63509592,0.00038969,3]
[314152274,1708025444292,-7498.2298316,0.00038969,3]
[314152275,1708025444304,-2959.64473179,0.00038969,3]
[314152282,1708025445454,-89934.7342972,0.00038969,3]
[314152283,1708025445568,-994.52561001,0.00038969,3]
[314152284,1708025445677,-599.27979208,0.00038969,3]
[314152285,1708026531892,169.10675772,5e-05,2]
[314152287,1708026539262,155.0,0.0003,4]
[314152288,1708026555211,155.0,0.0003,4]
[314152289,1708026555613,658.38854338,5e-05,2]
[314152290,1708026556700,155.0,5e-05,2]
[314152291,1708026558566,3888.21071442,5e-05,2]
[314152292,1708026560646,155.0,5e-05,2]
[314152293,1708026561083,548.57518325,5e-05,7]
[314152294,1708026562575,155.0,5e-05,2]
[314152296,1708026569626,548.65711949,5e-05,2]
[314152297,1708026574706,155.0,5e-05,2]
[314152298,1708026577210,302.03281343,0.0003,4]
[314152299,1708026577967,155.0,0.00018,2]
[314152300,1708026578554,157.39166331,5e-05,2]
[314152301,1708026578581,2592.14047628,5e-05,2]
[314152302,1708026578614,155.0,5e-05,2]
[314152303,1708026581090,548.57518325,5e-05,7]
[314152314,1708026631657,-307.07267272,0.00031227,7]
[314152315,1708026631667,-222.61600932,0.00031227,2]
[314152317,1708026631676,-6623.41550919,0.00034,4]
[314152319,1708026631685,-155.0,0.00034,4]
[314152320,1708026631695,-282.94193633,0.00034001,4]
[314152322,1708026631704,-1398.334969,0.00034001,4]
[314152323,1708026631713,-842.00419921,0.00034001,4]
[314152324,1708026631723,-2567.57980834,0.00034001,4]
[314152325,1708026631733,-688.60769733,0.00034001,4]
[314152326,1708026631742,-1419.82261589,0.00034001,4]
[314152327,1708026631751,-587.02960121,0.00034002,4]
[314152328,1708026631762,-347.02994857,0.00034003,4]
[314152329,1708026631771,-291.32097264,0.0003466,2]
[314152330,1708026631781,-704.56425897,0.00034688,10]
[314152331,1708026631791,-277.56361004,0.00034688,10]
[314152332,1708026631800,-155.0,0.00034695,4]
[314152333,1708026631810,-544.63963228,0.00034695,4]
[314152334,1708026631819,-382.23303535,0.00034695,4]
[314152335,1708026631828,-288.17103909,0.00034695,4]
[314152336,1708026631838,-155.0,0.00034695,4]
[314152337,1708026631847,-456.38650279,0.00034695,4]
[314152338,1708026631856,-988.32012381,0.00034695,4]
[314152339,1708026631866,-202.61156402,0.00034695,4]
[314152340,1708026631877,-155.0,0.00034695,4]
[314152341,1708026631887,-155.40634064,0.00034695,4]
[314152342,1708026631896,-358.81989081,0.00034695,4]
[314152343,1708026631906,-246.36872012,0.00034695,4]
[314152344,1708026631915,-2010.69403758,0.00034695,4]
[314152345,1708026631924,-155.0,0.00034695,4]
[314152346,1708026631934,-489.93341196,0.00034695,4]
[314152347,1708026631943,-733.85853344,0.00034695,4]
[314152348,1708026631952,-696.30458101,0.00034695,4]
[314152349,1708026631962,-155.0,0.00034695,4]
[314152350,1708026631971,-299.73604089,0.00034695,4]
[314152351,1708026631980,-203.60898205,0.00034695,4]
[314152352,1708026631990,-199.46838864,0.00034695,4]
[314152353,1708026631999,-214.68340081,0.00034695,4]
[314152354,1708026632009,-346.3258402,0.00034696,4]
[314152355,1708026632018,-155.0,0.00034696,4]
[314152356,1708026632027,-201.90329855,0.00034696,4]
[314152357,1708026632037,-184.57415758,0.00034697,30]
[314152358,1708026632046,-155.0,0.00034697,4]
[314152359,1708026632056,-155.3643592,0.00034697,4]
[314152360,1708026632065,-5870.4875367,0.00034697,4]
[314152361,1708026632074,-156.58999519,0.00034697,4]
[314152362,1708026632083,-155.0,0.00034697,4]
[314152363,1708026632093,-155.0,0.00034697,4]
[314152364,1708026632102,-331.05797361,0.00034697,4]
[314152365,1708026632111,-155.0,0.00034697,4]
[314152366,1708026632120,-572.13055051,0.00034697,4]
[314152367,1708026632131,-155.0,0.00034697,4]
[314152368,1708026632140,-3692.07003735,0.00034697,4]
[314152369,1708026632149,-861.17017969,0.00034697,4]
[314152370,1708026632159,-3543.41946776,0.00034697,2]
[314152371,1708026632168,-195.34098179,0.00034697,4]
[314152372,1708026632177,-155.0,0.00034697,4]
[314152373,1708026632186,-274.45999844,0.00034697,4]
[314152374,1708026632195,-721.77638207,0.00034697,4]
[314152375,1708026632204,-418.25508518,0.00034697,4]
[314152376,1708026632213,-647.6864572,0.00034697,4]
[314152377,1708026632222,-944.30110439,0.00034697,4]
[314152378,1708026632231,-234.92283519,0.00034697,4]
[314152379,1708026632241,-184.65572058,0.00034697,4]
[314152380,1708026632249,-269.31696793,0.00034697,4]
[314152381,1708026632258,-450.38432835,0.00034697,4]
[314152382,1708026632267,-173.1453224,0.00034697,4]
[314152383,1708026632276,-242.39389077,0.00034697,4]
[314152384,1708026632286,-208.82548942,0.00034697,4]
[314152385,1708026632295,-155.0,0.00034697,4]
[314152386,1708026632303,-767.98380868,0.00034697,4]
[314152387,1708026632312,-198.51483792,0.00034697,4]
[314152388,1708026632322,-1782.16791748,0.00034697,4]
[314152389,1708026632333,-156.35466542,0.00034697,4]
[314152390,1708026632342,-1433.86968206,0.00034697,4]
[314152391,1708026632351,-829.40552262,0.00034697,4]
[314152392,1708026632361,-1214.30971666,0.00034697,4]
[314152393,1708026632370,-1657.58040562,0.00034697,4]
[314152394,1708026632381,-286.29,0.00034697,2]
[314152395,1708026632390,-701.71,0.00034697,2]
[314152396,1708026632399,-161.38611177,0.00034698,4]
[314152397,1708026632409,-7223.70549521,0.00034698,4]
[314152398,1708026632418,-15374.76510665,0.00034699,10]
[314152399,1708026632441,-6298.17052262,0.00034699,10]
[314152400,1708026632454,-1542.57082532,0.00034709,10]
[314152401,1708026632464,-783.04,0.00034788,2]
[314152402,1708026632474,-309.65150318,0.000348,2]
[314152403,1708026632483,-700.1232475,0.00035,4]
[314152404,1708026632493,-3924.00711726,0.00035,15]
[314152405,1708026632503,-360.29050171,0.00035072,7]
[314152406,1708026632513,-246.99,0.00035994,2]
[314152407,1708026632525,-499.99,0.00035994,2]
[314152408,1708026632536,-272.72,0.00035994,2]
[314152409,1708026632546,-10921.76900241,0.00035994,2]
[314152410,1708026634728,-2342.84099759,0.00035994,2]
[314152411,1708026634739,-159.0,0.0003623,2]
[314152412,1708026634749,-200.0,0.0003624,2]
[314152413,1708026634758,-156.68,0.00036512,2]
[314152414,1708026634768,-216.25681352,0.00036605,2]
[314152415,1708026634780,-583.22113,0.00036605,2]
[314152416,1708026634797,-19846.38248845,0.00036605,2]
[314152417,1708026634813,-343.15377102,0.00036605,2]
[314152418,1708026634825,-1153.450029,0.00036605,2]
[314152419,1708026634836,-262.604331,0.00036605,2]
[314152420,1708026634848,-1494.93143701,0.00036605,2]
[314152421,1708026634858,-2000.0,0.00036619,2]
[314152422,1708026634867,-250.0,0.00036647,2]
[314152423,1708026634876,-250.0,0.00036678,2]
[314152424,1708026634887,-474.55994374,0.00036687,2]
[314152425,1708026634915,-99.02005626,0.00036687,2]
[314152426,1708026634924,-19140.0,0.000367,3]
[314152427,1708026634933,-575.58,0.00036707,2]
[314152428,1708026634942,-621.69,0.00036725,2]
[314152429,1708026634951,-151.0,0.00036745,7]
[314152431,1708026634961,-400.3,0.00036746,2]